[Event "Baku Open 2024"]
[Site "Baku"]
[Date "2024.07.07"]
[Round "9.39"]
[White "Ravshanov, Sheralijon"]
[Black "Bayramov, Zaur"]
[Result "0-1"]
[ECO "A70"]
[WhiteElo "2072"]
[BlackElo "2249"]
[Annotator "RC"]
[PlyCount "104"]
[EventDate "2024.06.29"]
[EventType "swiss"]
[EventCountry "AZE"]
[SourceTitle "playchess.com"]
[Source "ChessBase"]
[SourceQuality "1"]
[TimeControl "5400+30"]

1. d4 {[%emt 0:00:17]} Nf6 {[%emt 0:00:14]} 2. c4 {[%emt 0:00:23]} c5 {[%emt 0:00:03]} 3. d5 {[%emt 0:00:32]} e6 {[%emt 0:00:07]} 4. Nc3 {[%emt 0:00:29]} exd5 {[%emt 0:00:08]} 5. cxd5 {[%emt 0:00:29]} d6 {[%emt 0:00:13]} 6. e4 {[%emt 0:00:34]} g6 {[%emt 0:00:06]} 7. h3 {[%emt 0:00:32]} Bg7 {[%emt 0:00:07]} 8. Nf3 {[%emt 0:00:32]} O-O {[%emt 0:00:08]} 9. Bd3 {[%emt 0:00:30]} a6 {[%emt 0:03:28]} 10. a4 {[%emt 0:00:28]} Nbd7 {[%emt 0:00:16]} 11. O-O {[%emt 0:00:28]} Qc7 {[%emt 0:01:26]} 12. Bf4 {[%emt 0:08:19]} Re8 {[%emt 0:00:51]} 13. Re1 {[%emt 0:00:17]} Rb8 {[%emt 0:00:45]} 14. Qc2 {[%emt 0:05:19]} Nh5 {[%emt 0:22:56]} 15. Bh2 {[%emt 0:27:19]} Ne5 {[%emt 0:03:56]} 16. Be2 {[%emt 0:00:26]} Nxf3+ {[%emt 0:01:04]} 17. Bxf3 {[%emt 0:00:07]} Nf6 {[%emt 0:00:08]} 18. Be2 {[%emt 0:20:33]} Nd7 {[%emt 0:05:17]} 19. f4 {[%emt 0:00:17]} Qa5 {[%emt 0:02:22]} 20. Bg4 {[%emt 0:00:31]} Qb4 {[%emt 0:02:13]} 21. e5 {[%emt 0:07:28]} h5 {[%emt 0:23:33]} 22. Bxd7 {[%emt 0:07:49]} Bxd7 {[%emt 0:00:15]} 23. e6 {[%emt 0:00:01]} fxe6 {[%emt 0:00:43]} 24. Qxg6 {[%emt 0:01:22]} exd5 {[%emt 0:07:09]} 25. f5 {[%emt 0:01:38]} Bc6 {[%emt 0:10:43]} 26. Bxd6 {[%emt 0:03:29]} Rbd8 {[%emt 0:01:34]} 27. Re6 {[%emt 0:04:15]} Rxe6 {[%emt 0:10:42]} 28. Qxe6+ {[%emt 0:00:06]} Kh7 {[%emt 0:01:22]} 29. Be5 {[%emt 0:04:20]} Bxe5 {[%emt 0:00:46]} 30. Qe7+ {[%emt 0:00:58]} Bg7 {[%emt 0:00:50]} 31. Qxd8 {[%emt 0:00:04]} Qd4+ {[%emt 0:01:58]} 32. Kh1 {[%emt 0:00:10]} Qf6 {[%emt 0:00:30]} 33. Qxf6 {[%emt 0:01:58]} Bxf6 {[%emt 0:00:01]} 34. Re1 {[%emt 0:00:09]} Kh6 {[%emt 0:00:51]} 35. Kg1 {[%emt 0:02:35]} Kg5 {[%emt 0:00:27]} 36. Kf2 {[%emt 0:02:21]} Kxf5 {[%emt 0:00:08]} 37. g4+ {[%emt 0:00:28]} hxg4 {[%emt 0:00:06]} 38. hxg4+ {[%emt 0:00:04]} Kxg4 {[%emt 0:00:12]} 39. Ke2 {[%emt 0:00:17]} d4 {[%emt 0:00:22]} 40. Nd1 {[%emt 0:00:14]} c4 {[%emt 0:00:59]} 41. b3 {[%emt 0:01:01]} b5 {[%emt 0:00:52]} 42. axb5 {[%emt 0:00:45]} axb5 {[%emt 0:00:05]} 43. bxc4 {[%emt 0:00:49]} bxc4 {[%emt 0:00:00]} 44. Nb2 {[%emt 0:00:21]} Bb5 {[%emt 0:01:17]} 45. Nxc4 {[%emt 0:01:23]} Bxc4+ {[%emt 0:00:01]} 46. Kd1 {[%emt 0:00:06]} Kf3 {[%emt 0:00:29]} 47. Re8 {[%emt 0:00:05]} Bg5 {[%emt 0:00:28]} 48. Kc2 {[%emt 0:00:38]} Be3 {[%emt 0:00:28]} 49. Rf8+ {[%emt 0:00:05]} Ke2 {[%emt 0:00:06]} 50. Rd8 {[%emt 0:00:07]} Bb5 {[%emt 0:00:17]} 51. Rd6 {[%emt 0:00:49]} d3+ {[%emt 0:00:42]} 52. Kb2 {[%emt 0:00:05]} d2 {[%emt 0:00:15]} 0-1

[Event "Baku Open 2024"]
[Site "Baku"]
[Date "2024.07.07"]
[Round "9.40"]
[White "Saravana, Krishnan P."]
[Black "Voinikonis, Nikita"]
[Result "1/2-1/2"]
[ECO "C42"]
[WhiteElo "2236"]
[BlackElo "2129"]
[Annotator "TA"]
[PlyCount "59"]
[EventDate "2024.06.29"]
[EventType "swiss"]
[EventCountry "AZE"]
[SourceTitle "playchess.com"]
[Source "ChessBase"]
[SourceQuality "1"]
[TimeControl "5400+30"]

{[%evp 10,59,6,8,25,6,8,0,0,0,19,31,41,41,39,39,42,43,43,29,35,23,21,28,16,0,16,20,10,0,0,0,0,0,7,13,8,0,0,0,52,47,42,0,7,0,18,4,18,0,0,0]} 1. e4 {[%emt 0:00:08]} e5 {[%emt 0:01:59]} 2. Nf3 {[%emt 0:00:41]} Nf6 {[%emt 0:00:09]} 3. Nxe5 {[%emt 0:03:38]} d6 {[%emt 0:00:07]} 4. Nf3 {[%emt 0:00:15]} Nxe4 {[%emt 0:00:07]} 5. d3 {[%emt 0:00:59]} Nf6 {[%emt 0:00:08]} 6. d4 {[%emt 0:00:04]} g6 {[%emt 0:00:15]} 7. Be2 {[%emt 0:02:09]} Bg7 {[%emt 0:00:06]} 8. O-O {[%emt 0:00:10]} O-O {[%emt 0:00:06][%cal Bh8f8,Bf8e8,Be8e7][%mdl 32]} 9. c4 {[%emt 0:00:36]} Bg4 {[%emt 0:05:19]} 10. h3 {[%emt 0:01:05]} Bxf3 {[%emt 0:00:05]} 11. Bxf3 {[%emt 0:00:09]} Nc6 {[%emt 0:00:06]} 12. Nc3 {[%emt 0:01:11] Repels d5} Re8 {[%emt 0:01:04]} 13. Be3 {[%emt 0:02:27]} Rb8 {[%emt 0:05:09]} 14. d5 {[%emt 0:06:23]} Ne5 {[%emt 0:00:15]} 15. Be2 {[%emt 0:00:46]} a6 {[%emt 0:01:48]} 16. Rc1 {[%emt 0:00:56]} Ned7 {[%emt 0:00:44]} 17. Qc2 {[%emt 0:11:22]} Re7 {[%emt 0:06:37]} (17... Rxe3 $5 18. fxe3 Qe7 $11) 18. Bd2 {[%emt 0:10:01]} Qf8 {[%emt 0:00:57]} 19. b4 {[%emt 0:01:19]} Rbe8 {[%emt 0:01:24]} 20. Rfe1 {[%emt 0:09:28]} Bh6 {[%emt 0:00:57]} 21. Bf1 {[%emt 0:00:41]} Rxe1 {[%emt 0:08:00]} 22. Rxe1 {[%emt 0:00:44]} Bxd2 {[%emt 0:01:15]} 23. Qxd2 {[%emt 0:00:21]} Rxe1 {[%emt 0:00:05]} 24. Qxe1 {[%emt 0:00:08]} Qe8 {[%emt 0:00:04]} ({Black should play} 24... Qh6 $11) 25. Qxe8+ $14 {[%emt 0:03:51]} Nxe8 {[%emt 0:00:06]} 26. h4 {[%emt 0:00:08]} Kf8 {[%emt 0:02:31] The position is equal.} 27. g3 {[%emt 0:03:00]} Ne5 {[%emt 0:01:50]} 28. Be2 {[%emt 0:02:26]} Ke7 {[%emt 0:03:15]} 29. Nb1 {[%emt 0:02:38]} c5 {[%emt 0:17:42]} 30. dxc6 {[%emt 0:10:05] Weighted Error Value: White=0.07 (flawless) /Black=0.09 (flawless) .  Mistake:       	---       	Black=1      Inaccurate:     	White=1     	---        OK:         	White=7     	Black=13} (30. f4 $5 Nd7 $8 31. b5 $11) 1/2-1/2

[Event "Baku Open 2024"]
[Site "Baku"]
[Date "2024.07.07"]
[Round "9.41"]
[White "Sherali Pattnaik"]
[Black "Wagh Suyog"]
[Result "0-1"]
[ECO "B12"]
[WhiteElo "1955"]
[BlackElo "2230"]
[Annotator "TA"]
[PlyCount "104"]
[EventDate "2024.06.29"]
[EventType "swiss"]
[EventCountry "AZE"]
[SourceTitle "playchess.com"]
[Source "ChessBase"]
[SourceQuality "1"]
[TimeControl "5400+30"]

{[%evp 9,103,13,10,6,19,8,15,1,19,0,2,0,0,0,5,0,0,0,0,0,0,-25,0,-23,0,0,0,-49,-26,-54,-51,-63,-64,-52,-37,-44,-48,-234,-233,-347,-346,-333,-358,-344,-336,-309,-302,-838,-833,-688,-600,-2288,-2258,-2258,-2241,-2251,-1814,-2170,-1868,-2367,-2118,-8544,-29940,-29947,-29948,-6482,-6237,-29969,-29968,-29978,-29979,-29982,-29983,-29985,-29986,-29987,-29987,-29992,-29993,-29993,-29994,-29994,-29995,-29995,-29994,-29996,-29995,-29995,-29996,-29996,-29997,-29997,-29998,-29998,-29999,-29999]} 1. e4 {[%emt 0:01:55]} c6 {[%emt 0:00:03]} 2. d4 {[%emt 0:00:03]} d5 {[%emt 0:00:06]} 3. e5 {[%emt 0:00:02]} Bf5 {[%emt 0:00:20]} 4. h4 {[%emt 0:00:04]} h5 {[%emt 0:00:09]} 5. Bd3 {[%emt 0:00:04]} Bxd3 {[%emt 0:00:11]} 6. Qxd3 {[%emt 0:00:07][%cal Oe5e6] Black should prevent e6!} Qa5+ {[%emt 0:00:05]} 7. Nd2 {[%emt 0:00:03][%cal Oe5e6] aiming for e6!} e6 {[%emt 0:00:07]} 8. Ngf3 {[%emt 0:00:03] The position is equal.} Ne7 {[%emt 0:00:15]} 9. O-O {[%emt 0:00:10][%cal Ob2b4]} Nf5 {[%emt 0:00:03]} 10. Nb3 {[%emt 0:00:05]} Qa6 {[%emt 0:00:05]} 11. Qd1 {[%emt 0:00:35]} Be7 {[%emt 0:00:04]} 12. g3 {[%emt 0:00:31]} Nd7 {[%emt 0:00:07]} 13. Bg5 {[%emt 0:05:22]} Bxg5 {[%emt 0:00:14]} 14. Nxg5 {[%emt 0:00:06]} Rc8 {[%emt 0:00:14]} 15. a3 {[%emt 0:01:47]} g6 {[%emt 0:06:39]} 16. Re1 {[%emt 0:04:32]} Kf8 {[%emt 0:05:51]} 17. Rc1 {[%emt 1:23:31]} Kg7 {[%emt 0:01:48]} 18. Nh3 {[%emt 0:00:00]} (18. Nf3 $11) 18... Qc4 {[%emt 0:08:00]} 19. Qd2 {[%emt 0:00:00]} c5 {[%emt 0:04:02]} 20. dxc5 {[%emt 0:00:00]} Qg4 {[%emt 0:11:15] Black is much more active.} 21. Kh2 {[%emt 0:00:00]} Nxc5 {[%emt 0:00:06]} 22. Nxc5 {[%emt 0:00:00]} Rxc5 {[%emt 0:00:02]} 23. c4 $2 {[%emt 0:00:00] Loses the game.} Rhc8 $19 {[%emt 0:13:24]} (23... Rxc4 24. Rxc4 dxc4 (24... Qxc4 25. Rc1 $17) 25. Qd7 $17) (23... dxc4 24. Ng5 Qd4 25. Qe2 $15) 24. cxd5 {[%emt 0:00:00] [#]} (24. Ng5 $142 Rxc4 25. Rxc4 Rxc4 (25... Qxc4 $2 26. Kg2 $19) 26. b3) 24... Nd4 $1 {[%emt 0:14:29] Hoping for ...Nf3+.} (24... Rxd5 25. Qg5 Qxg5 26. Nxg5 $11) 25. Ng5 {[%emt 0:00:00]} Rxc1 {[%emt 0:15:25]} 26. Rxc1 {[%emt 0:00:00]} Nb3 {[%emt 0:00:07]} (26... exd5 $2 27. Rxc8 Nf3+ 28. Nxf3 Qxc8 29. Qxd5 $18) 27. Rxc8 {[%emt 0:00:00]} Nxd2 {[%emt 0:00:04]} 28. d6 $2 {[%emt 0:00:00]} (28. dxe6 Qf5 29. Kg1 Qxe5 (29... fxe6 $2 30. Rc7+ Kf8 31. Nh7+ Ke8 32. Nf6+ Kd8 33. Rd7+ Kc8 34. Rxd2 $17) 30. exf7 Qe1+ (30... Qxb2 31. f8=Q#) 31. Kh2 Qxf2+ 32. Kh1 Qe1+ (32... Qxg3 33. f8=Q#) 33. Kg2 Qf1+ 34. Kh2 Nf3+ 35. Nxf3 Qf2+ (35... Qxf3 36. f8=Q+ Qxf8 37. Rxf8 $11) 36. Kh3 Kxf7 (36... Qxf3 37. f8=Q+ Qxf8 38. Rxf8 $11) (36... Qf1+ $2 37. Kh2 $19) 37. Rc4) 28... Qd4 {[%emt 0:09:12][%csl LRb2,LRe5,LRf2]} 29. Kg2 {[%emt 0:00:00]} Qxe5 {[%emt 0:01:21]} (29... Qxb2 $2 {loses.} 30. d7 Qxe5 31. d8=Q $18 (31. d8=R $2 {too greedy.} Qe1 $19)) 30. Rd8 {[%emt 0:00:00]} Qe2 {[%emt 0:04:34]} 31. d7 {[%emt 0:00:00]} Qf1+ {[%emt 0:00:16]} 32. Kh2 {[%emt 0:00:00]} Qxf2+ {[%emt 0:00:05]} 33. Kh3 {[%emt 0:00:00]} Qd4 {[%emt 0:01:38][%cal Od4d5] [#] ( -> ...Qd5!)} 34. Rh8 {[%emt 0:00:00]} Qxd7 {[%emt 0:00:34]} ({Not} 34... Kxh8 35. d8=Q+ Qxd8 36. Nxf7+ Kg7 37. Nxd8 $17) 35. Rh7+ {[%emt 0:00:00]} Kg8 {[%emt 0:00:06]} 36. Rxf7 {[%emt 0:00:00]} Qxf7 {[%emt 0:00:04]} 37. Nxf7 {[%emt 0:00:00]} Kxf7 {[%emt 0:00:03][%mdl 4096] Endgame. KN-KP} 38. g4 {[%emt 0:00:00]} Kf6 {[%emt 0:00:15] Black mates.} 39. gxh5 {[%emt 0:00:00]} gxh5 {[%emt 0:00:03] KN-K3P} 40. b4 {[%emt 0:00:00]} Kf5 {[%emt 0:00:04]} 41. b5 {[%emt 0:00:00]} Kf4 {[%emt 0:00:03]} 42. b6 {[%emt 0:00:00]} axb6 {[%emt 0:00:03] KN-KPP} 43. a4 {[%emt 0:00:00]} Kf3 {[%emt 0:00:04]} 44. a5 {[%emt 0:00:00]} bxa5 {[%emt 0:00:03] KN-KP} 45. Kh2 {[%emt 0:00:00]} a4 {[%emt 0:00:03]} 46. Kh3 {[%emt 0:00:00]} b5 {[%emt 0:00:05]} 47. Kh2 {[%emt 0:00:00]} e5 {[%emt 0:00:03]} 48. Kh3 {[%emt 0:00:00]} e4 {[%emt 0:00:03]} 49. Kh2 {[%emt 0:00:00]} e3 {[%emt 0:00:05]} 50. Kh3 {[%emt 0:00:00]} e2 {[%emt 0:00:05]} 51. Kh2 {[%emt 0:00:00]} e1=Q {[%emt 0:00:25]} 52. Kh3 {[%emt 0:00:00]} Qg3# {[%emt 0:00:09] Weighted Error Value: White=1.05/Black=0.10 (very precise) .  Loses game:     	White=1     	---        Mistake:       	White=3     	---        Inaccurate:     	White=1     	---        OK:         	White=4     	Black=14     Best:        	White=1     	Black=1      Strong:       	---       	Black=1} 0-1

[Event "Baku Open 2024"]
[Site "Baku"]
[Date "2024.07.07"]
[Round "9.42"]
[White "Guliev, Sarhan"]
[Black "Aghaverdiyeva, Maryam"]
[Result "1-0"]
[ECO "D34"]
[WhiteElo "2224"]
[BlackElo "1834"]
[Annotator "RC"]
[PlyCount "79"]
[EventDate "2024.06.29"]
[EventType "swiss"]
[EventCountry "AZE"]
[SourceTitle "playchess.com"]
[Source "ChessBase"]
[SourceQuality "1"]
[TimeControl "5400+30"]

1. d4 {[%emt 0:03:09]} d5 {[%emt 0:00:12]} 2. c4 {[%emt 0:00:09]} e6 {[%emt 0:00:10]} 3. Nc3 {[%emt 0:00:08]} c5 {[%emt 0:00:18]} 4. cxd5 {[%emt 0:00:14]} exd5 {[%emt 0:00:15]} 5. Nf3 {[%emt 0:00:05]} Nf6 {[%emt 0:00:37]} 6. g3 {[%emt 0:00:39]} Nc6 {[%emt 0:00:14]} 7. Bg2 {[%emt 0:00:07]} Be7 {[%emt 0:00:36]} 8. O-O {[%emt 0:00:11]} O-O {[%emt 0:00:08]} 9. dxc5 {[%emt 0:00:28]} Bxc5 {[%emt 0:00:08]} 10. Bg5 {[%emt 0:00:09]} d4 {[%emt 0:00:33]} 11. Bxf6 {[%emt 0:01:03]} Qxf6 {[%emt 0:00:12]} 12. Nd5 {[%emt 0:00:13]} Qd8 {[%emt 0:04:45]} 13. Nd2 {[%emt 0:02:45]} Bg4 {[%emt 0:07:33]} 14. Nb3 {[%emt 0:09:23]} Bb6 {[%emt 0:01:07]} 15. Re1 {[%emt 0:00:12]} Re8 {[%emt 0:01:32]} 16. Nxb6 {[%emt 0:02:46]} axb6 {[%emt 0:02:31]} 17. Bxc6 {[%emt 0:03:35]} bxc6 {[%emt 0:00:05]} 18. f3 {[%emt 0:00:07]} Be6 {[%emt 0:10:01]} 19. Nxd4 {[%emt 0:05:41]} Bxa2 {[%emt 0:02:46]} 20. Nxc6 {[%emt 0:03:05]} Qf6 {[%emt 0:00:13]} 21. Nd4 {[%emt 0:03:15]} Bd5 {[%emt 0:01:12]} 22. Rxa8 {[%emt 0:00:33]} Bxa8 {[%emt 0:00:05]} 23. Qd2 {[%emt 0:01:12]} Rd8 {[%emt 0:02:30]} 24. Rd1 {[%emt 0:01:09]} g6 {[%emt 0:00:57]} 25. Kf2 {[%emt 0:00:20]} h5 {[%emt 0:02:06]} 26. Qf4 {[%emt 0:01:56]} Qxf4 {[%emt 0:04:55]} 27. gxf4 {[%emt 0:00:28]} Bb7 {[%emt 0:00:17]} 28. e4 {[%emt 0:01:05]} Ra8 {[%emt 0:00:23]} 29. Rd3 {[%emt 0:02:51]} Kf8 {[%emt 0:08:49]} 30. Rb3 {[%emt 0:00:49]} Ra6 {[%emt 0:04:29]} 31. Ke3 {[%emt 0:02:02]} Ke7 {[%emt 0:00:43]} 32. Rc3 {[%emt 0:00:13]} Ba8 {[%emt 0:01:33]} 33. Rc7+ {[%emt 0:01:28]} Ke8 {[%emt 0:02:09]} 34. f5 {[%emt 0:03:37]} Ra2 {[%emt 0:04:34]} 35. f6 {[%emt 0:00:41]} h4 {[%emt 0:00:51]} 36. Re7+ {[%emt 0:01:39]} Kf8 {[%emt 0:00:29]} 37. e5 {[%emt 0:00:12]} h3 {[%emt 0:03:34]} 38. e6 {[%emt 0:00:12]} Rxb2 {[%emt 0:00:23]} 39. Rxf7+ {[%emt 0:00:45]} Ke8 {[%emt 0:00:23]} 40. Rh7 {[%emt 0:00:28]} 1-0

[Event "Baku Open 2024"]
[Site "Baku"]
[Date "2024.07.07"]
[Round "9.43"]
[White "Shahaliyev, Ismayil"]
[Black "Rebecca Jesumarian"]
[Result "1/2-1/2"]
[ECO "E63"]
[WhiteElo "2385"]
[BlackElo "1866"]
[Annotator "TA"]
[PlyCount "65"]
[EventDate "2024.06.29"]
[EventType "swiss"]
[EventCountry "AZE"]
[SourceTitle "playchess.com"]
[Source "ChessBase"]
[SourceQuality "1"]
[TimeControl "5400+30"]

{[%evp 22,65,8,-26,20,16,50,0,0,-35,-33,-43,-44,-67,-51,-72,-72,-131,-91,-123,-72,-138,-22,-70,-71,-65,-67,-58,-64,-72,-62,-65,-68,-90,-86,-95,0,-13,0,-108,0,0,0,0,-69,-74]} 1. Nf3 {[%emt 0:00:23]} Nf6 {[%emt 0:00:10]} 2. d4 {[%emt 0:00:10]} g6 {[%emt 0:00:05]} 3. c4 {[%emt 0:01:02]} Bg7 {[%emt 0:00:07]} 4. g3 {[%emt 0:00:03]} O-O {[%emt 0:00:12]} 5. Bg2 {[%emt 0:00:06]} d6 {[%emt 0:00:09]} 6. Nc3 {[%emt 0:00:11]} Nc6 {[%emt 0:00:27]} 7. O-O {[%emt 0:00:16]} a6 {[%emt 0:00:03][%cal Ba7a6,Ba6b5,Bb5b4][%mdl 32]} 8. b3 {[%emt 0:02:22]} Rb8 {[%emt 0:00:07]} 9. Bb2 {[%emt 0:00:24]} b5 {[%emt 0:00:42]} 10. cxb5 {[%emt 0:01:05]} axb5 {[%emt 0:00:04]} 11. d5 {[%emt 0:01:03]} Na5 {[%emt 0:06:57]} 12. Nd4 {[%emt 0:06:08][%cal Ob3b4]} Bd7 {[%emt 0:01:28]} (12... b4 {was preferrable.}) 13. Rc1 {[%emt 0:02:40]} e5 {[%emt 0:02:10]} 14. Nc2 {[%emt 0:00:19]} (14. dxe6 $14 fxe6 15. Ncxb5) 14... b4 {[%emt 0:05:51] The position is equal.} 15. Nb1 {[%emt 0:00:09]} c5 {[%emt 0:01:08]} 16. dxc6 {[%emt 0:03:13]} Bxc6 {[%emt 0:00:15]} 17. Bxc6 {[%emt 0:17:43]} Nxc6 {[%emt 0:00:07]} 18. Ne3 {[%emt 0:00:04]} Qd7 {[%emt 0:04:09]} 19. Nc4 {[%emt 0:02:29]} (19. Nd5 $142 Nxd5 20. Qxd5) 19... Rfd8 {[%emt 0:04:42]} 20. Nbd2 {[%emt 0:02:26] [#]} Qh3 {[%emt 0:04:49]} ({Black should play} 20... Qe6 $1 21. Nf3 Ne4) 21. f3 {[%emt 0:01:32] [#]} (21. Nf3 $142) 21... Nh5 {[%emt 0:05:04]} (21... Qe6 $1 $17 {And now ...d5 would win.} 22. e4 d5 23. exd5 Nxd5 (23... Rxd5 24. Qe2 $17)) 22. Ne3 {[%emt 0:08:37]} (22. e4 $1 $11 {is superior.}) 22... Ne7 $15 {[%emt 0:04:32]} 23. Ng4 {[%emt 0:09:17] [#]} Nxg3 {[%emt 0:07:39]} 24. Nf2 {[%emt 0:11:20]} Qh4 {[%emt 0:02:15]} 25. Rc4 $1 {[%emt 0:00:06]} (25. hxg3 Qxg3+ 26. Kh1 Qh4+ 27. Kg1 e4 28. Nfxe4 (28. Bxg7 Qg3+ 29. Kh1 Rb5) 28... Bxb2 $19) 25... e4 {[%emt 0:00:15]} 26. Ndxe4 $1 {[%emt 0:00:25][%cal Bd2e4,Be4g5,Bg5e6][%mdl 32]} Bxb2 {[%emt 0:07:24]} (26... Nxf1 27. Nf6+ (27. Nxd6 $2 Qxh2+ 28. Kxf1 Rxd6 $19) 27... Bxf6 28. Rxh4 (28. Kxf1 $2 Qxh2 29. Bxf6 Nf5 $19) 28... Bxb2 29. Qxf1 $11 (29. Kxf1 Nf5 $11)) 27. hxg3 {[%emt 0:09:12]} Qh6 {[%emt 0:00:53] aiming for ...d5.} 28. Rc7 {[%emt 0:01:40][%cal Of2g4]} (28. Nxd6 $2 {loses.} Be5 29. Ng4 Qh3 30. Nxe5 Qxg3+ 31. Kh1 Qxe5 $19) 28... Nf5 {[%emt 0:01:22]} ({Better is} 28... d5 $1 $17 {[%cal Rd5e4]} 29. Qc2 dxe4 30. Qxb2 Nd5) 29. Qd5 {[%emt 0:01:04][%cal Oe4g5] Threatens to win with Ng5!} Qg7 {[%emt 0:01:21] Strongly threatening ...Ne3.} 30. Rb1 {[%emt 0:02:45]} (30. Ng5 $1 $11 Ne3 31. Qxf7+ Qxf7 32. Nxf7) 30... Bd4 {[%emt 0:03:40]} 31. Ng5 $1 {[%emt 0:04:28]} Rf8 {[%emt 0:08:56][%cal Ob8e8]} (31... Nxg3 $2 {is the wrong capture.} 32. Rxf7 Nxe2+ 33. Kf1 $18) 32. Ne6 {[%emt 0:07:02] Really sharp!} Bxf2+ {[%emt 0:00:50]} 33. Kxf2 {[%emt 0:00:03] Weighted Error Value: White=0.22 (precise) /Black=0.33.  Mistake:       	White=5     	Black=3      Inaccurate:     	White=1     	Black=3      OK:         	White=2     	Black=7      Best:        	White=3     	Black=2      Strong:       	White=3     	---        Brilliant:      	---       	Black=1} 1/2-1/2

[Event "Baku Open 2024"]
[Site "Baku"]
[Date "2024.07.07"]
[Round "9.44"]
[White "Nurgali, Nazerke"]
[Black "Lyutsinger, Iren"]
[Result "1/2-1/2"]
[ECO "A13"]
[WhiteElo "2252"]
[BlackElo "2069"]
[Annotator "TA"]
[PlyCount "50"]
[EventDate "2024.06.29"]
[EventType "swiss"]
[EventCountry "AZE"]
[SourceTitle "playchess.com"]
[Source "ChessBase"]
[SourceQuality "1"]
[TimeControl "5400+30"]

{[%evp 18,50,20,27,35,36,22,11,42,43,43,30,106,54,72,0,46,40,41,45,54,37,74,79,73,0,0,0,0,-88,0,0,0,0,16]} 1. Nf3 {[%emt 0:00:04]} Nf6 {[%emt 0:00:06]} 2. b3 {[%emt 0:00:12]} d5 {[%emt 0:00:10]} 3. Bb2 {[%emt 0:00:22]} c5 {[%emt 0:00:24]} 4. e3 {[%emt 0:00:42]} e6 {[%emt 0:00:16]} 5. Be2 {[%emt 0:00:41]} Bd6 {[%emt 0:01:04]} 6. c4 {[%emt 0:01:11]} Nc6 {[%emt 0:00:25]} 7. cxd5 {[%emt 0:02:06]} exd5 {[%emt 0:00:08]} 8. O-O {[%emt 0:01:03]} O-O {[%emt 0:00:10]} 9. d4 {[%emt 0:00:43]} cxd4 {[%emt 0:02:47]} 10. Nxd4 {[%emt 0:00:14]} Bc7 {[%emt 0:00:44]} 11. Nd2 {[%emt 0:04:16]} Re8 {[%emt 0:07:24]} 12. N2f3 {[%emt 0:02:02]} Bg4 {[%emt 0:09:39]} 13. Rc1 {[%emt 0:04:07]} Rc8 {[%emt 0:09:33]} 14. h3 {[%emt 0:06:09]} Bh5 {[%emt 0:08:58]} (14... Bxf3 $11 {hält das Gleichgewicht.} 15. Bxf3 (15. Nxf3 Ne4 $14) 15... Qd7) 15. Nb5 {[%emt 0:05:00]} (15. Nxc6 $16 bxc6 16. g4 (16. Rxc6 Bxf3 17. Rxc7 Rxc7 $11)) 15... Bb8 {[%emt 0:18:09]} 16. Nbd4 {[%emt 0:08:39] Weiß steht aktiver.} (16. Bxf6 $16 Qxf6 17. Qxd5) 16... Qd7 {[%emt 0:08:33]} (16... Bc7 $11) 17. Nxc6 $14 {[%emt 0:04:41]} Rxc6 {[%emt 0:00:06]} 18. Rxc6 {[%emt 0:00:29]} bxc6 {[%emt 0:01:10]} 19. Qc2 {[%emt 0:08:04]} Ne4 {[%emt 0:03:17]} 20. Rc1 {[%emt 0:02:28]} c5 {[%emt 0:05:35]} 21. Qd3 {[%emt 0:02:15]} ({Besser ist} 21. Ng5 $16 {Droht Nxe4 und aus.} Bxe2 22. Nxe4 dxe4 23. Qxe2) 21... Qd6 $11 {[%emt 0:07:03][%cal Od5d4]} 22. Kf1 {[%emt 0:02:47]} h6 {[%emt 0:02:11]} 23. Qb5 {[%emt 0:06:37] [#]} (23. Rd1 $11 Rd8 24. Be5) 23... Re6 {[%emt 0:01:16]} ({Vorzuziehen ist} 23... Qe6 $1 $17 {[%cal Oe4f2] ...Nxf2! ist eine echte Drohung.} 24. Qd3 Bg6) 24. Ba3 {[%emt 0:01:41][%cal Ra3c5]} a6 {[%emt 0:01:33]} 25. Qb7 {[%emt 0:00:20] Und Qc8+ würde nun gewinnen.} Kh7 {[%emt 0:01:02] Gewichteter Fehlerwert: Weiß=0.25 (präzise) /Schwarz=0.27 (präzise) .  Fehler:       	Weiß=4     	Schwarz=3     Ungenau:       	---       	Schwarz=2     OK:         	Weiß=7     	Schwarz=6} 1/2-1/2